bitfinex/quotes_SOLUSD_20240702
["timestamp","ask_amount","ask_price","bid_price","bid_amount"]
[1719924073454,6.63,150.83,150.74,0.8542987]
[1719924073752,6.0378,150.84,150.74,0.8542987]
[1719924073950,12.6673,150.84,150.74,0.8542987]
[1719924074353,27.05,150.83,150.74,0.8542987]
[1719924074564,6.6307,150.82,150.74,0.8542987]
[1719924074775,33.6799,150.83,150.74,0.8542987]
[1719924074963,6.6309,150.81,150.74,0.8542987]
[1719924075149,27.05,150.83,150.74,0.8542987]
[1719924075652,6.6313,150.8,150.74,0.8542987]
[1719924075863,27.05,150.83,150.74,0.8542987]
[1719924075864,6.6308,150.81,150.74,0.8542987]
[1719924076270,6.6309,150.81,150.74,0.8542987]
[1719924076662,27.05,150.83,150.74,0.8542987]
[1719924077178,20.0,150.82,150.74,0.8542987]
[1719924077560,26.6304,150.82,150.74,0.8542987]
[1719924078249,27.05,150.83,150.74,0.8542987]
[1719924079055,6.6312,150.81,150.74,0.8542987]
[1719924079672,6.6313,150.8,150.74,0.8542987]
[1719924080068,29.2709,150.79,150.74,0.8542987]
[1719924080273,6.6333,150.76,150.74,0.8542987]
[1719924080781,27.05,150.77,150.74,0.8542987]
[1719924081585,22.6392,150.79,150.74,0.8542987]
[1719924082383,29.2712,150.79,150.74,0.8542987]
[1719924083892,22.6392,150.79,150.74,0.8542987]
[1719924085290,6.3547,150.79,150.74,0.8542987]
[1719924085466,56.4474,150.83,150.74,0.8542987]
[1719924085670,6.6304,150.82,150.74,0.8542987]
[1719924085984,49.8174,150.83,150.74,0.8542987]
[1719924086596,6.6311,150.81,150.74,0.8542987]
[1719924087069,6.6313,150.8,150.74,0.8542987]
[1719924087590,6.5196,150.83,150.74,0.8542987]
[1719924087891,33.6788,150.86,150.74,0.8542987]
[1719924088188,27.05,150.86,150.74,0.8542987]
[1719924088493,27.05,150.86,150.75,100.0]
[1719924088891,22.4427,150.87,150.75,100.0]
[1719924090276,22.18178019,150.91,150.77,100.0]
[1719924090475,21.8863,150.91,150.79,6.3719]
[1719924090892,21.8863,150.91,150.79,33.4219]
[1719924091290,15.2596,150.91,150.79,33.4219]
[1719924091599,15.2596,150.91,150.79,133.4219]
[1719924092803,21.8861,150.91,150.79,33.4219]
[1719924093001,6.6269,150.9,150.79,33.4219]
[1719924093580,21.8862,150.91,150.79,33.4219]
[1719924093779,6.6272,150.9,150.79,33.4219]
[1719924094002,21.8861,150.91,150.79,33.4219]
[1719924094201,6.6269,150.9,150.79,33.4219]
[1719924094382,15.2596,150.91,150.79,6.3719]
[1719924094587,6.6269,150.9,150.79,6.3719]
[1719924094910,21.8862,150.91,150.79,6.3719]
[1719924096305,6.6274,150.89,150.79,6.3719]
[1719924096507,21.8864,150.91,150.79,6.3719]
[1719924097892,6.6269,150.9,150.79,6.3719]
[1719924099100,21.8861,150.91,150.79,6.3719]
[1719924099502,21.8863,150.91,150.79,6.3719]
[1719924100196,6.6269,150.9,150.79,6.3719]
[1719924100590,21.8862,150.91,150.79,6.3719]
[1719924102106,6.6266,150.91,150.79,6.3719]
[1719924103191,40.0768,150.92,150.79,6.3719]
[1719924103390,6.6265,150.91,150.79,6.3719]
[1719924103591,6.6269,150.9,150.79,6.3719]
[1719924104598,6.6265,150.91,150.8,1.32596045]
[1719924104793,6.6265,150.91,150.79,6.3719]
[1719924104992,6.6269,150.9,150.79,6.3719]
[1719924106000,6.627,150.9,150.79,6.3719]
[1719924106588,6.4007,150.92,150.79,6.3719]
[1719924106913,6.6267,150.91,150.79,33.4219]
[1719924107207,6.4007,150.92,150.79,6.3719]
[1719924107404,6.6274,150.89,150.79,6.3719]
[1719924107587,6.6283,150.87,150.79,6.3719]
[1719924107787,6.6275,150.89,150.79,6.3719]
[1719924108408,6.6278,150.88,150.79,6.3719]
[1719924109107,6.6282,150.87,150.79,6.3719]
[1719924109407,6.6278,150.88,150.79,6.3719]
[1719924109899,27.05,150.9,150.79,6.3719]
[1719924110696,6.6285,150.87,150.79,6.3719]
[1719924110997,6.6287,150.86,150.79,6.3719]
[1719924111206,6.6292,150.85,150.78,15.5578]
[1719924111386,6.6289,150.86,150.78,15.5578]
[1719924111712,27.05,150.87,150.78,15.5578]
[1719924111908,6.6288,150.86,150.78,15.5578]
[1719924112607,6.6291,150.85,150.78,15.5578]
[1719924112788,6.6292,150.85,150.78,15.5578]
[1719924113417,27.05,150.87,150.78,15.5578]
[1719924113794,6.6296,150.84,150.78,15.5578]
[1719924114212,6.6292,150.85,150.78,15.5578]
[1719924114514,27.05,150.87,150.78,15.5578]
[1719924114710,6.6294,150.85,150.75,6.637]
[1719924114913,6.6296,150.84,150.75,6.637]
[1719924115616,6.63,150.83,150.75,6.637]
[1719924115989,33.6796,150.84,150.75,6.637]
[1719924116188,27.05,150.84,150.75,6.637]
[1719924116508,6.6302,150.83,150.74,16.1492987]
[1719924116708,6.6312,150.81,150.74,16.1492987]
[1719924117009,33.6812,150.81,150.74,16.1492987]
[1719924117988,27.05,150.81,150.74,16.1492987]
[1719924118207,13.55655082,150.84,150.74,16.1492987]
[1719924118410,6.6305,150.82,150.74,16.1492987]
[1719924118596,26.6301,150.83,150.74,16.1492987]
[1719924118797,20.0,150.83,150.74,16.1492987]
[1719924119201,6.6307,150.82,150.74,16.1492987]
[1719924119504,26.63,150.83,150.74,16.1492987]
[1719924119702,20.0,150.83,150.74,16.1492987]
[1719924119909,20.0,150.84,150.74,16.1492987]
[1719924120301,6.6304,150.82,150.74,16.1492987]
[1719924120504,6.6309,150.81,150.74,16.1492987]
[1719924120810,20.0,150.84,150.74,16.1492987]
[1719924120811,16.5754,150.83,150.74,16.1492987]
[1719924121002,27.05,150.82,150.74,16.1492987]
[1719924121395,6.632,150.79,150.74,16.1492987]
[1719924121809,6.6314,150.8,150.74,16.1492987]
[1719924121988,6.6308,150.81,150.74,16.1492987]
[1719924122190,27.05,150.82,150.74,16.1492987]
[1719924122417,6.6318,150.79,150.74,16.1492987]
[1719924122915,6.6314,150.8,150.74,16.1492987]
[1719924123507,6.6318,150.79,150.74,16.1492987]
[1719924124120,16.5777,150.81,150.74,16.1492987]
[1719924124415,6.6326,150.77,150.74,16.1492987]
[1719924124720,6.6332,150.76,150.74,16.1492987]
[1719924125202,6.6326,150.77,150.74,16.1492987]
[1719924125602,43.6299,150.79,150.74,0.8542987]
[1719924126399,6.6334,150.75,150.74,0.8542987]
[1719924127917,6.6331,150.76,150.74,0.8542987]
[1719924128506,6.6334,150.75,150.74,0.8542987]
[1719924128918,27.05,150.78,150.74,0.8542987]
[1719924128919,6.6332,150.76,150.74,0.8542987]
[1719924129102,6.6327,150.77,150.74,0.8542987]
[1719924129305,27.05,150.78,150.74,0.8542987]
[1719924129616,6.6323,150.78,150.74,0.8542987]
[1719924129809,47.05,150.8,150.74,0.8542987]
[1719924129995,6.6322,150.78,150.74,0.8542987]
[1719924130817,6.6326,150.77,150.74,0.8542987]
[1719924131001,6.6331,150.76,150.74,0.8542987]
[1719924131703,6.6327,150.77,150.74,0.8542987]
[1719924132109,6.633,150.76,150.74,0.8542987]
[1719924132903,6.6334,150.75,150.74,0.8542987]
[1719924133211,6.6332,150.76,150.74,0.8542987]
[1719924134015,6.6327,150.77,150.74,0.8542987]
[1719924135119,63.6284,150.8,150.74,0.8542987]
[1719924135422,6.6334,150.75,150.74,0.8542987]
[1719924137722,20.1934,150.75,150.74,0.8542987]
[1719924142014,40.1934,150.75,150.74,0.8542987]
[1719924143126,20.1934,150.75,150.74,0.8542987]
[1719924143331,26.6334,150.75,150.74,0.8542987]
[1719924143530,20.1934,150.75,150.74,0.8542987]
[1719924144211,22.8861,150.79,150.74,0.8542987]
[1719924144411,20.1934,150.75,150.74,0.8542987]
[1719924146602,6.6332,150.76,150.74,0.8542987]
[1719924146801,20.0,150.78,150.74,0.8542987]
[1719924147021,13.56,150.75,150.74,0.8542987]
[1719924147714,20.1934,150.75,150.74,0.8542987]
[1719924148217,6.6333,150.76,150.74,0.8542987]
[1719924148427,13.56,150.75,150.74,0.8542987]
[1719924149629,20.1934,150.75,150.74,0.8542987]
[1719924150933,13.56,150.75,150.74,0.8542987]
[1719924151120,36.5795,150.79,150.74,0.8542987]
[1719924151322,13.56,150.75,150.74,0.8542987]
[1719924151836,20.1934,150.75,150.74,0.8542987]
[1719924153705,6.6334,150.75,150.74,0.8542987]
[1719924154038,20.1934,150.75,150.74,0.8542987]
[1719924155928,6.6334,150.75,150.74,0.8542987]
[1719924156130,20.1934,150.75,150.74,0.8542987]
[1719924158136,6.6322,150.78,150.74,0.8542987]
[1719924158319,6.6318,150.79,150.74,0.8542987]
[1719924158636,6.6315,150.8,150.74,0.8542987]
[1719924158819,13.56,150.78,150.74,0.8542987]
[1719924159837,20.1921,150.78,150.74,0.8542987]
[1719924160617,13.56,150.78,150.74,0.8542987]
[1719924160832,13.56,150.75,150.74,0.8542987]
[1719924164841,13.56,150.76,150.74,0.8542987]
[1719924167523,16.5802,150.79,150.74,0.8542987]
[1719924167729,6.6334,150.75,150.74,0.8542987]
[1719924167957,13.56,150.75,150.74,0.8542987]
[1719924169429,20.1934,150.75,150.74,0.8542987]
[1719924169941,20.1934,150.75,150.64,30.2177]
[1719924169942,6.6361,150.69,150.64,30.2177]
[1719924170139,6.6371,150.67,150.6,16.6577]
[1719924170447,6.637,150.67,150.62,13.56]
[1719924170747,13.56,150.67,150.62,13.56]
[1719924171059,13.56,150.67,150.6,16.6577]
[1719924171060,16.5896,150.7,150.58,0.8542987]
[1719924171222,6.2037,150.64,150.58,0.8542987]
[1719924171425,20.0,150.63,150.58,0.8542987]
[1719924171619,6.6381,150.65,150.58,0.8542987]
[1719924171964,13.56,150.63,150.58,0.8542987]
[1719924172126,13.56,150.63,150.58,14.4142987]
[1719924172436,20.0,150.62,150.58,0.8542987]
[1719924172636,6.6403,150.6,150.58,0.8542987]
[1719924172944,20.0,150.62,150.58,0.8542987]
[1719924173122,13.56,150.59,150.58,0.8542987]
[1719924173524,20.2005,150.59,150.58,0.8542987]
[1719924173742,6.6401,150.6,150.58,0.8542987]
[1719924173940,53.8095,150.62,150.58,0.8542987]
[1719924174436,27.17,150.62,150.58,0.8542987]
[1719924174741,6.6383,150.65,150.58,0.8542987]
[1719924175043,20.0,150.64,150.58,0.8542987]
[1719924175244,6.6374,150.67,150.59,6.5882]
[1719924175429,27.17,150.69,150.59,6.5882]
[1719924175641,6.6367,150.68,150.59,6.5882]
[1719924176958,6.6371,150.67,150.59,6.5882]
[1719924177123,6.637,150.67,150.58,0.8542987]
[1719924177321,27.17,150.69,150.58,0.8542987]
[1719924177842,27.17,150.72,150.58,0.8542987]
[1719924178038,6.6357,150.7,150.58,0.8542987]
[1719924178443,27.17,150.72,150.58,0.8542987]
[1719924178638,6.6366,150.68,150.58,0.8542987]
[1719924178843,6.6362,150.69,150.58,0.8542987]
[1719924179039,6.6366,150.68,150.58,0.8542987]
[1719924179429,27.17,150.69,150.58,0.8542987]
[1719924179634,6.6371,150.67,150.58,0.8542987]
[1719924179837,27.17,150.69,150.58,0.8542987]
[1719924180052,6.6374,150.66,150.58,0.8542987]
[1719924180231,20.0,150.68,150.58,0.8542987]
[1719924180636,6.6372,150.67,150.58,0.8542987]
[1719924180858,20.0,150.68,150.58,0.8542987]
[1719924181062,26.6367,150.68,150.58,0.8542987]
[1719924181230,6.6374,150.67,150.58,0.8542987]
[1719924181431,6.6375,150.66,150.58,0.8542987]
[1719924181650,6.6379,150.65,150.58,0.8542987]
[1719924181955,27.17,150.66,150.58,0.8542987]
[1719924182841,20.0,150.68,150.58,0.8542987]
[1719924183146,20.0,150.69,150.59,16.3124]
[1719924183351,27.17,150.7,150.59,16.3124]
[1719924183557,33.8054,150.71,150.59,16.3124]
[1719924183859,16.5852,150.74,150.6,7.75419009]
[1719924183860,34.09482249,150.74,150.6,7.75419009]
[1719924184055,27.17,150.74,150.6,6.4265]
[1719924184443,6.6346,150.73,150.6,6.4265]
[1719924184752,27.17,150.74,150.6,6.4265]
[1719924184938,20.0,150.73,150.6,6.4265]
[1719924185142,27.17,150.74,150.61,100.0]
[1719924185340,33.8028,150.77,150.62,15.9227]
[1719924185541,33.8028,150.77,150.63,106.0017]
[1719924185542,6.633,150.76,150.63,106.0017]
[1719924185755,6.6339,150.74,150.63,6.0017]
[1719924186133,6.6336,150.75,150.63,6.0017]
[1719924187155,6.9233421,150.8,150.66,100.0]
[1719924187156,27.17,150.8,150.66,100.0]
[1719924187844,27.17,150.8,150.68,100.0]
[1719924188040,6.91995244,150.85,150.69,6.5754]
[1719924188041,6.6307,150.82,150.69,6.5754]
[1719924188246,6.631,150.81,150.69,6.5754]
[1719924188568,27.17,150.83,150.69,6.5754]
[1719924188732,27.17,150.84,150.7,15.1721]
[1719924189449,6.6311,150.81,150.7,15.1721]
[1719924189855,6.6315,150.8,150.7,15.1721]
[1719924190271,6.6322,150.78,150.7,15.1721]
[1719924190457,27.17,150.81,150.7,15.1721]
[1719924190966,33.801,150.81,150.7,15.1721]
[1719924191458,6.6305,150.82,150.7,15.1721]
[1719924192179,6.6309,150.81,150.7,15.1721]
[1719924192468,43.7442,150.84,150.7,15.1721]
[1719924192676,6.6314,150.8,150.7,15.1721]
[1719924192848,6.6318,150.79,150.7,15.1721]
[1719924193369,6.6313,150.8,150.7,15.1721]
[1719924193573,27.17,150.81,150.7,15.1721]
[1719924194168,6.6318,150.79,150.7,15.1721]
[1719924194745,6.6322,150.78,150.7,15.1721]
[1719924195263,6.6318,150.79,150.7,15.1721]
[1719924195571,6.6313,150.8,150.7,15.1721]
[1719924196774,33.801,150.81,150.7,15.1721]
[1719924196970,6.6313,150.8,150.7,15.1721]
[1719924198851,6.91764122,150.85,150.7,142.3421]
[1719924199060,6.6308,150.82,150.7,142.3421]
[1719924199257,6.6301,150.83,150.7,142.3421]
[1719924199980,6.6305,150.82,150.7,142.3421]
[1719924200478,6.5499,150.86,150.7,42.3421]
[1719924200660,6.5499,150.86,150.7,15.1721]
[1719924200661,6.6312,150.81,150.7,15.1721]
[1719924200860,6.6313,150.8,150.7,15.1721]
[1719924201858,6.6318,150.79,150.7,15.1721]
[1719924202053,27.17,150.81,150.7,15.1721]
[1719924202257,6.6315,150.8,150.7,15.1721]
[1719924202853,33.8009,150.81,150.7,15.1721]
[1719924203269,16.5744,150.84,150.7,115.1721]
[1719924203270,33.7995,150.84,150.7,115.1721]
[1719924203481,26.6299,150.83,150.7,115.1721]
[1719924203878,6.6304,150.82,150.7,115.1721]
[1719924204292,26.6301,150.83,150.71,22.83419883]
[1719924204857,16.5712,150.87,150.72,100.0]
[1719924205079,6.91532241,150.88,150.75,106.1079]
[1719924205270,27.17,150.89,150.75,106.1079]
[1719924205474,6.6287,150.86,150.75,106.1079]
[1719924205980,6.6287,150.86,150.75,6.1079]
[1719924206479,16.5698,150.88,150.75,6.1079]
[1719924206785,6.6294,150.85,150.75,6.1079]
[1719924207164,6.6295,150.84,150.75,6.1079]
[1719924207983,6.6291,150.85,150.75,6.1079]
[1719924208165,6.6287,150.86,150.75,6.1079]
[1719924208363,6.6291,150.85,150.75,6.1079]
[1719924208879,27.17,150.89,150.76,16.4036]
[1719924209073,20.0,150.88,150.76,16.4036]
[1719924209271,27.17,150.89,150.76,116.4036]
[1719924209677,6.6281,150.88,150.76,116.4036]
[1719924209871,16.5648,150.93,150.76,116.4036]
[1719924210070,27.17,150.91,150.76,143.5736]
[1719924210279,20.0,150.9,150.76,143.5736]
[1719924210473,6.6276,150.89,150.76,143.5736]
[1719924210675,6.6278,150.88,150.76,143.5736]
[1719924211188,20.0,150.9,150.76,143.5736]
[1719924211395,6.6283,150.87,150.76,143.5736]
[1719924211762,6.6279,150.88,150.76,143.5736]
[1719924211991,20.0,150.9,150.76,43.5736]
[1719924212292,6.6282,150.87,150.76,143.5736]
[1719924212786,6.6287,150.86,150.76,43.5736]
[1719924212966,27.17,150.88,150.76,16.4036]
[1719924213167,6.6292,150.85,150.76,16.4036]
[1719924213567,6.6287,150.86,150.76,16.4036]
[1719924213766,6.6291,150.85,150.76,16.4036]
[1719924213981,6.6298,150.84,150.76,16.4036]
[1719924214389,6.6301,150.83,150.76,16.4036]
[1719924214577,16.5717,150.86,150.76,16.4036]
[1719924214782,27.17,150.88,150.76,16.4036]
[1719924214966,6.6293,150.85,150.76,16.4036]
[1719924215585,6.6288,150.86,150.76,16.4036]
[1719924215775,6.6291,150.85,150.76,16.4036]
[1719924216377,6.6287,150.86,150.76,16.4036]
[1719924216685,20.0,150.87,150.77,1.32607592]
[1719924217279,26.6282,150.87,150.76,16.4036]
[1719924217478,6.6282,150.87,150.77,1.32603048]
[1719924217888,27.17,150.88,150.78,23.2079]
[1719924218086,6.628,150.88,150.78,23.2079]
[1719924218313,6.6279,150.88,150.78,23.2079]
[1719924218487,6.6282,150.87,150.78,23.2079]
[1719924218872,6.6286,150.86,150.78,23.2079]
[1719924219174,27.17,150.93,150.79,15.1722]
[1719924219393,43.7348,150.93,150.79,15.1722]
[1719924219894,6.6271,150.9,150.79,15.1722]
[1719924220100,43.7348,150.93,150.79,15.1722]
[1719924220101,6.6273,150.89,150.79,15.1722]
[1719924220294,43.7348,150.93,150.79,15.1722]
[1719924220480,6.6276,150.89,150.79,15.1722]
[1719924220993,6.6278,150.88,150.79,15.1722]
[1719924221203,6.6274,150.89,150.79,15.1722]
[1719924221691,20.0,150.92,150.79,15.1722]
[1719924221692,6.6268,150.91,150.79,115.1722]
[1719924221890,6.6269,150.9,150.79,115.1722]
[1719924222803,43.7348,150.93,150.8,16.0939]
[1719924222804,27.17,150.93,150.8,16.0939]
[1719924223311,6.6264,150.91,150.8,16.0939]
[1719924223878,6.626,150.92,150.81,100.0]
[1719924224086,27.17,150.93,150.8,16.0939]
[1719924224286,6.6266,150.91,150.8,16.0939]
[1719924224501,6.6261,150.92,150.8,16.0939]
[1719924224702,6.6265,150.91,150.8,16.0939]
[1719924224903,6.6272,150.9,150.8,16.0939]
[1719924225103,27.17,150.93,150.8,16.0939]
[1719924225286,6.6269,150.9,150.8,16.0939]
[1719924225484,6.6266,150.91,150.8,16.0939]
[1719924226302,27.17,150.93,150.8,16.0939]
[1719924226482,6.627,150.9,150.8,16.0939]
[1719924227583,6.6262,150.92,150.8,16.0939]
[1719924227991,6.6267,150.91,150.8,16.0939]
[1719924228496,6.6264,150.91,150.8,16.0939]
[1719924229888,6.6261,150.92,150.8,16.0939]
[1719924230085,33.7959,150.93,150.8,16.0939]
[1719924230312,33.7959,150.93,150.81,100.0]
[1719924231106,6.626,150.92,150.81,100.0]
[1719924231490,6.6264,150.91,150.8,16.0939]
[1719924231700,6.6269,150.9,150.8,16.0939]
[1719924233105,6.6274,150.89,150.8,16.0939]
[1719924234014,6.627,150.9,150.8,16.0939]
[1719924234392,6.6273,150.89,150.8,16.0939]
[1719924234706,27.17,150.9,150.8,16.0939]
[1719924234907,6.6282,150.87,150.8,16.0939]
[1719924235787,6.6279,150.88,150.81,1.32602401]
[1719924237595,6.6283,150.87,150.8,16.0939]
[1719924237912,6.6279,150.88,150.81,1.32602483]
[1719924238317,6.6279,150.88,150.8,16.0939]
[1719924238507,6.6283,150.87,150.8,16.0939]
[1719924239418,6.6279,150.88,150.8,16.0939]
[1719924240112,27.17,150.9,150.8,16.0939]
[1719924240508,33.7971,150.9,150.8,16.0939]
[1719924240738,27.17,150.93,150.8,16.0939]
[1719924240899,6.6269,150.9,150.8,16.0939]
[1719924241303,27.17,150.93,150.8,16.0939]
[1719924241828,31.5738,150.95,150.83,13.53]
[1719924241829,13.53,150.87,150.83,13.53]
[1719924242328,13.53,150.87,150.8,16.0939]
[1719924242503,6.6273,150.89,150.82,13.53]
[1719924242820,16.5641,150.93,150.82,13.53]
[1719924242821,13.53,150.87,150.82,13.53]
[1719924243617,13.53,150.87,150.8,16.0939]
[1719924243801,6.6275,150.89,150.8,16.0939]
[1719924244215,27.06,150.92,150.8,16.0939]
[1719924244216,6.627,150.9,150.8,16.0939]
[1719924245519,6.6265,150.91,150.8,16.0939]
[1719924245819,6.6269,150.9,150.8,16.0939]
[1719924246518,27.06,150.92,150.8,16.0939]
[1719924246519,6.6263,150.92,150.8,16.0939]
[1719924247110,6.6264,150.91,150.8,16.0939]
[1719924247431,6.6262,150.92,150.8,16.0939]
[1719924247640,6.6262,150.92,150.81,6.5926]
[1719924248110,6.6266,150.91,150.81,6.5926]
[1719924248622,27.06,150.93,150.81,6.5926]
[1719924248832,6.6269,150.9,150.81,6.5926]
[1719924249123,6.6274,150.89,150.81,6.5926]
[1719924249319,6.627,150.9,150.81,6.5926]
[1719924249708,6.6269,150.9,150.81,6.5926]
[1719924249898,27.06,150.93,150.81,6.5926]
[1719924249899,6.6267,150.91,150.81,6.5926]
[1719924250104,6.6269,150.9,150.81,6.5926]
[1719924250319,27.06,150.93,150.81,6.5926]
[1719924250634,6.6265,150.91,150.81,6.5926]
[1719924251002,26.6262,150.92,150.81,6.5926]
[1719924251597,26.6262,150.92,150.82,16.3708]
[1719924251802,6.6267,150.91,150.82,16.3708]
[1719924252803,6.6269,150.9,150.82,16.3708]
[1719924252999,6.6266,150.91,150.82,16.3708]
[1719924255045,6.6269,150.9,150.82,16.3708]
[1719924255426,6.6266,150.91,150.82,16.3708]
[1719924257203,6.6269,150.9,150.82,16.3708]
[1719924258039,6.6265,150.91,150.82,16.3708]
[1719924258236,20.0,150.92,150.82,16.3708]
[1719924258436,20.0,150.94,150.82,16.3708]
[1719924258807,6.6264,150.91,150.82,16.3708]
[1719924259208,6.6261,150.92,150.82,16.3708]
[1719924259524,6.6269,150.9,150.82,16.3708]
[1719924260102,6.6265,150.91,150.82,16.3708]
[1719924260324,6.6263,150.92,150.82,16.3708]
[1719924260626,6.6266,150.91,150.82,16.3708]
[1719924261518,6.6269,150.9,150.82,16.3708]
[1719924261715,6.6266,150.91,150.82,16.3708]
[1719924262436,6.6266,150.91,150.83,1.32556549]
[1719924263717,13.52,150.9,150.85,13.52]
[1719924263916,13.52,150.9,150.83,1.32556549]
[1719924264138,6.6261,150.92,150.86,13.52]
[1719924264439,13.52,150.93,150.89,15.7344]
[1719924264731,13.03364178,150.99,150.9,13.52]
[1719924264943,13.52,150.96,150.91,13.52]
[1719924265127,13.52,150.97,150.92,13.52]
[1719924265328,6.6232,150.99,150.93,13.52]
[1719924265523,13.52,150.98,150.93,13.52]
[1719924265725,16.5541,151.02,150.93,13.52]
[1719924266045,7.83941323,151.05,150.94,36.0427]
[1719924266217,13.52,151.02,150.98,13.52]
[1719924266416,13.52,151.02,150.97,13.52]
[1719924267244,16.5479,151.08,150.98,13.52]
[1719924267435,13.52,151.03,150.98,13.52]
[1719924267626,13.52,151.02,150.97,13.52]
[1719924268144,6.6199,151.06,150.98,13.52]
[1719924268444,13.49426822,151.1,150.98,13.52]
[1719924268445,6.6207,151.04,150.98,13.52]
[1719924268618,13.52,151.02,150.97,13.52]
[1719924268816,13.52,151.0,150.94,22.5227]
[1719924269012,13.52,151.0,150.95,13.52]
[1719924269633,16.5492,151.07,150.96,13.52]
[1719924269816,16.5492,151.07,150.94,22.5227]
[1719924269817,13.52,151.0,150.95,13.52]
[1719924270022,6.6217,151.02,150.95,13.52]
[1719924270934,6.6217,151.02,150.94,22.5227]
[1719924270935,13.52,150.97,150.94,22.5227]
[1719924271145,13.52,150.96,150.94,15.9279]
[1719924271334,13.52,150.96,150.89,6.4004]
[1719924271335,13.52,150.95,150.9,16.0448]
[1719924271514,13.52,150.94,150.9,29.5648]
[1719924272336,6.6217,151.02,150.93,13.52]
[1719924272524,13.52,150.99,150.94,13.52]
[1719924273915,6.6217,151.02,150.94,13.52]
[1719924274114,13.52,150.99,150.94,13.52]
[1719924274339,13.52,151.0,150.95,13.52]
[1719924275017,6.6213,151.03,150.95,13.52]
[1719924275321,6.6208,151.04,150.97,15.9667]
[1719924275522,13.52,151.01,150.97,29.4867]
[1719924275928,13.52,151.01,150.97,15.9667]
[1719924276544,56.0794,151.09,150.97,15.9667]
[1719924276545,13.52,150.99,150.97,15.9667]
[1719924278132,6.4396,151.09,150.97,22.0904]
[1719924278370,13.52,151.0,150.97,22.0904]
[1719924279153,54.08,151.04,150.97,22.0904]
[1719924279448,13.52,151.01,150.97,22.0904]
[1719924279948,13.52,151.0,150.97,22.0904]
[1719924280248,54.08,151.04,150.97,15.9667]
[1719924280449,13.52,150.99,150.97,15.9667]
[1719924280637,13.52,150.98,150.93,35.2398]
[1719924280835,13.52,150.98,150.94,13.52]
[1719924281924,13.52,150.99,150.94,13.52]
[1719924282253,22.93930495,151.08,150.93,21.7198]
[1719924282426,22.93930495,151.08,150.96,13.52]
[1719924282427,13.52,151.01,150.96,13.52]
[1719924283052,13.52,151.01,150.97,13.52]
[1719924283233,26.6195,151.07,150.97,13.52]
[1719924283554,13.52,151.01,150.97,13.52]
[1719924284249,13.52,151.01,150.93,21.7198]
[1719924284550,13.52,151.01,150.97,13.52]
[1719924284958,6.6199,151.06,150.97,13.52]
[1719924285126,13.52,151.02,150.97,13.52]
[1719924285523,6.6199,151.06,150.97,13.52]
[1719924285760,13.52,151.02,150.97,13.52]
[1719924286461,13.52,151.01,150.97,13.52]
[1719924286832,13.52,151.01,150.93,21.7198]
[1719924287040,13.52,151.01,150.96,13.52]
[1719924287437,20.0,151.07,150.96,13.52]
[1719924287747,13.52,151.01,150.93,21.7198]
[1719924287943,6.6204,151.05,150.96,13.52]
[1719924288152,13.52,151.01,150.96,13.52]
[1719924288453,20.0,151.07,150.93,21.7198]
[1719924288454,13.52,150.99,150.93,21.7198]
[1719924288750,13.52,150.99,150.95,13.52]
[1719924289568,20.1408,151.04,150.95,13.52]
[1719924289725,60.7008,151.04,150.95,13.52]